fUST/lending_fUST_20250301
["ID","MTS","AMOUNT","RATE_DAILY","PERIOD"]
[354918826,1740816971650,457.955748,0.000257,30]
[354918831,1740817350107,542.99797353,0.00028,30]
[354918833,1740817609702,3000.0,0.0003,14]
[354918835,1740817632148,-646.73196401,0.000239,2]
[354918836,1740817637400,-243.55258757,0.000239,2]
[354918837,1740817641119,-1070.24514415,0.000239,2]
[354918838,1740817650089,-741.05527668,0.000239,2]
[354918839,1740817650113,-517.70364598,0.00028307,2]
[354918845,1740817726204,1161.401063,0.0002,120]
[354918846,1740817749207,-7150.93080282,0.00023,2]
[354918847,1740817749228,-300.0,0.00026848,2]
[354918848,1740817749247,-9482.29635402,0.00028307,2]
[354918849,1740817749267,-563.578903,0.00028679,2]
[354918850,1740817749287,-2701.58497241,0.000289,2]
[354918851,1740817749307,-209.3969537,0.00028992,2]
[354918852,1740817749330,-420.0,0.0002903,2]
[354918853,1740817749350,-542.99797353,0.000291,2]
[354918854,1740817749370,-1000.0,0.00029705,2]
[354918855,1740817749391,-10000.0,0.00029806,5]
[354918856,1740817749413,-317.87519081,0.000299,5]
[354918857,1740817749432,-358.0,0.0003,2]
[354918858,1740817749454,-317.87519071,0.00030348,5]
[354918859,1740817749474,-717.76599322,0.00030566,2]
[354918860,1740817749494,-500.0,0.00030666,2]
[354918861,1740817749516,-500.0,0.00030666,2]
[354918862,1740817749537,-500.0,0.00030666,2]
[354918863,1740817749558,-500.0,0.00030666,2]
[354918864,1740817749580,-500.0,0.00030666,2]
[354918865,1740817749601,-500.0,0.00030666,2]
[354918866,1740817749622,-500.0,0.00030666,2]
[354918867,1740817749643,-446.47090437,0.00030666,2]
[354918868,1740817749666,-500.0,0.00030666,2]
[354918869,1740817749687,-500.0,0.00030666,2]
[354918870,1740817749709,-500.0,0.00030666,2]
[354918871,1740817749730,-500.0,0.00030666,2]
[354918872,1740817749751,-500.0,0.00030666,2]
[354918873,1740817749774,-500.0,0.00030666,2]
[354918874,1740817749794,-500.0,0.00030666,2]
[354918875,1740817749816,-500.0,0.00030666,2]
[354918876,1740817749837,-500.0,0.00030666,2]
[354918877,1740817749858,-500.0,0.00030666,2]
[354918878,1740817749879,-500.0,0.00030666,2]
[354918879,1740817749905,-500.0,0.00030666,2]
[354918880,1740817749927,-22073.27782519,0.00030667,2]
[354918881,1740817755133,-2826.72217481,0.00030667,2]
[354918882,1740817755158,-317.87519071,0.00030797,5]
[354918883,1740817755179,-500.0,0.00031,10]
[354918884,1740817755201,-500.0,0.00031,10]
[354918885,1740817755222,-313.57559896,0.00031,10]
[354918886,1740817755245,-317.87519071,0.00031245,5]
[354918887,1740817755266,-587.0,0.0003139,2]
[354918888,1740817755286,-717.76599318,0.00031391,2]
[354918889,1740817755307,-317.87519071,0.00031693,6]
[354918890,1740817755327,-250.0,0.000317,30]
[354918891,1740817755348,-200.0,0.000321,32]
[354918892,1740817755371,-317.87519071,0.00032141,6]
[354918893,1740817755391,-175.33985521,0.00032182,2]
[354918894,1740817755413,-717.76599318,0.00032215,2]
[354918895,1740817755436,-317.87519071,0.0003259,6]
[354918896,1740817755457,-457.22175795,0.00032776,2]
[354918897,1740817755477,-160.54,0.000328,2]
[354918898,1740817755497,-10000.0,0.00032801,10]
[354918899,1740817768326,292.46657089,0.00032776,2]
[354918903,1740817797186,500.0,0.00030666,2]
[354918904,1740817807738,500.0,0.00030666,2]
[354918905,1740817807774,500.0,0.00030666,2]
[354918906,1740817807807,500.0,0.00030666,2]
[354918907,1740817807840,500.0,0.00030666,2]
[354918908,1740817807866,500.0,0.00030666,2]
[354918909,1740817807896,500.0,0.00030666,2]
[354918910,1740817807927,500.0,0.00030666,2]
[354918911,1740817807966,500.0,0.00030666,2]
[354918912,1740817807998,500.0,0.00030666,2]
[354918913,1740817808066,500.0,0.00030666,2]
[354918914,1740817808101,500.0,0.00030666,2]
[354918915,1740817808144,500.0,0.00030666,2]
[354918916,1740817808209,500.0,0.00030666,2]
[354918917,1740817808256,500.0,0.00030666,2]
[354918918,1740817808324,361.89150154,0.00030666,2]
[354918919,1740817809716,158.189,0.00032799,2]
[354918921,1740817813841,500.0,0.00030666,2]
[354918922,1740817813868,500.0,0.00030666,2]
[354918923,1740817814775,500.0,0.00030666,2]
[354918924,1740817815676,500.0,0.00030666,2]
[354918925,1740817815758,500.0,0.00030666,2]
[354918926,1740817816181,500.0,0.00030666,2]
[354918927,1740817817002,500.0,0.00030666,2]
[354918928,1740817817037,500.0,0.00030666,2]
[354918929,1740817822784,500.0,0.00030666,2]
[354918930,1740817822815,500.0,0.00030666,2]
[354918972,1740817832141,-151.0,0.00032856,2]
[354918973,1740817832152,-500.0,0.00032856,2]
[354918974,1740817832162,-478.94,0.0003286,3]
[354918975,1740817832171,-319.26,0.00032863,3]
[354918976,1740817832180,-159.63,0.00032863,3]
[354918977,1740817832189,-485.72,0.00032866,3]
[354918978,1740817832200,-383.53,0.00032866,3]
[354918979,1740817832209,-400.0,0.00032869,2]
[354918980,1740817832219,-541.28619054,0.0003287,2]
[354918981,1740817832228,-541.18,0.0003287,2]
[354918982,1740817832238,-541.18,0.0003287,2]
[354918983,1740817832247,-541.18,0.0003287,2]
[354918984,1740817832256,-541.18,0.0003287,2]
[354918985,1740817832266,-541.18,0.0003287,2]
[354918986,1740817832275,-541.18,0.0003287,2]
[354918987,1740817832285,-541.18,0.0003287,2]
[354918988,1740817832294,-541.18,0.0003287,2]
[354918989,1740817832304,-541.18,0.0003287,2]
[354918990,1740817832313,-541.18,0.0003287,2]
[354918991,1740817832322,-541.18,0.0003287,2]
[354918992,1740817832332,-541.18,0.0003287,2]
[354918993,1740817832341,-541.18,0.0003287,2]
[354918994,1740817832351,-541.18,0.0003287,2]
[354918995,1740817832360,-541.18,0.0003287,2]
[354918996,1740817832369,-541.18,0.0003287,2]
[354918997,1740817832379,-541.18,0.0003287,2]
[354918998,1740817832388,-541.18,0.0003287,2]
[354918999,1740817832398,-541.18,0.0003287,2]
[354919000,1740817832407,-541.18,0.0003287,2]
[354919001,1740817832416,-541.18,0.0003287,2]
[354919002,1740817832425,-541.18,0.0003287,2]
[354919003,1740817832435,-254.58764294,0.00032873,5]
[354919004,1740817832517,-71.85910711,0.00032873,5]
[354919011,1740817837758,-27.06139862,0.00032873,5]
[354919012,1740817837822,-160.07346823,0.00032873,5]
[354919013,1740817837833,-500.0,0.00032873,5]
[354919014,1740817837842,-506.31835063,0.00032873,5]
[354919015,1740817837852,-537.96322875,0.00032873,5]
[354919016,1740817837862,-160.0,0.00032873,5]
[354919017,1740817837872,-160.0,0.00032873,5]
[354919018,1740817837881,-500.0,0.00032873,5]
[354919019,1740817837891,-160.0,0.00032873,5]
[354919020,1740817837902,-160.0,0.00032873,5]
[354919021,1740817837912,-500.0,0.00032873,5]
[354919023,1740817837922,-500.0,0.00032873,5]
[354919024,1740817837936,-160.0,0.00032873,5]
[354919025,1740817837945,-160.0,0.00032873,5]
[354919026,1740817837955,-160.0,0.00032873,5]
[354919027,1740817837965,-160.0,0.00032873,5]
[354919028,1740817837974,-160.0,0.00032873,5]
[354919029,1740817837984,-500.0,0.00032873,5]
[354919030,1740817837994,-500.0,0.00032873,5]
[354919031,1740817838004,-326.56610794,0.00032873,5]
[354919032,1740817838014,-500.0,0.00032873,5]
[354919033,1740817838024,-400.0719195,0.00032873,5]
[354919034,1740817838034,-500.0,0.00032873,5]
[354919035,1740817838043,-500.0,0.00032873,5]
[354919036,1740817838054,-500.0,0.00032873,5]
[354919037,1740817838063,-316.1257533,0.00032873,5]
[354919038,1740817838080,-183.8742467,0.00032873,5]
[354919039,1740817838090,-160.0,0.00032873,2]
[354919040,1740817838432,-501.44015297,0.00032873,5]
[354919041,1740817838449,-160.0,0.00032873,5]
[354919042,1740817838459,-500.0,0.00032873,5]
[354919043,1740817838469,-500.0,0.00032873,5]
[354919044,1740817838479,-158.5,0.00032873,5]
[354919045,1740817838489,-639.23073795,0.00032873,5]
[354919046,1740817838498,-500.0,0.00032873,5]
[354919047,1740817838508,-160.0,0.00032873,5]
[354919048,1740817838517,-160.0,0.00032873,2]
[354919049,1740817838526,-160.0,0.00032873,5]
[354919050,1740817838536,-633.90338812,0.00032873,5]
[354919051,1740817838545,-160.0,0.00032873,5]
[354919052,1740817838554,-170.26903411,0.00032873,5]
[354919053,1740817838564,-160.0,0.00032873,5]
[354919054,1740817838574,-500.0,0.00032873,5]
[354919055,1740817838584,-500.0,0.00032873,3]
[354919056,1740817838593,-500.0,0.00032873,5]
[354919057,1740817838603,-160.0,0.00032873,5]
[354919058,1740817838612,-158.5,0.00032873,5]
[354919059,1740817838622,-257.5,0.00032873,5]
[354919060,1740817838632,-160.0,0.00032873,5]
[354919061,1740817838641,-160.0,0.00032873,5]
[354919062,1740817838651,-250.51698514,0.00032876,2]
[354919063,1740817838660,-500.0,0.00032876,2]
[354919064,1740817838670,-387.93605932,0.00032876,2]
[354919065,1740817838683,-500.0,0.00032876,2]
[354919066,1740817838693,-594.09157554,0.00032876,2]
[354919067,1740817838703,-164.93799115,0.00032876,2]
[354919068,1740817838712,-294.58088097,0.00032876,2]
[354919069,1740817838721,-428.26109559,0.00032876,2]
[354919070,1740817838731,-500.0,0.00032876,2]
[354919071,1740817838740,-1644.15,0.00032876,2]
[354919072,1740817838750,-559.88,0.00032876,2]
[354919073,1740817838759,-500.0,0.00032876,2]
[354919074,1740817838769,-500.0,0.00032876,2]
[354919075,1740817838778,-500.0,0.00032876,2]
[354919076,1740817838787,-500.0,0.00032876,2]
[354919077,1740817838797,-500.0,0.00032876,2]
[354919078,1740817838807,-513.41,0.00032876,2]
[354919079,1740817838816,-1208.73,0.00032876,2]
[354919080,1740817838826,-97.4137919,0.00032876,2]
[354919081,1740817839543,-402.5862081,0.00032876,2]
[354919082,1740817839553,-500.0,0.00032876,2]
[354919083,1740817839562,-1587.26,0.00032876,2]
[354919084,1740817839571,-500.0,0.00032876,2]
[354919085,1740817839581,-500.0,0.00032876,2]
[354919086,1740817839590,-1671.69,0.00032876,2]
[354919087,1740817839600,-500.0,0.00032876,2]
[354919088,1740817839609,-500.0,0.00032876,2]
[354919089,1740817839619,-500.0,0.00032876,2]
[354919090,1740817839628,-500.0,0.00032876,2]
[354919091,1740817839638,-500.0,0.00032876,2]
[354919092,1740817839647,-500.0,0.00032876,2]
[354919093,1740817839658,-500.0,0.00032876,2]
[354919094,1740817839668,-500.0,0.00032876,2]
[354919095,1740817839677,-648.21,0.00032876,2]
[354919096,1740817839686,-500.0,0.00032876,2]
[354919097,1740817839696,-500.0,0.00032876,2]
[354919098,1740817839705,-500.0,0.00032876,2]
[354919099,1740817839715,-500.0,0.00032876,2]
[354919100,1740817839725,-500.0,0.00032876,2]
[354919101,1740817839734,-505.11530453,0.00032876,2]
[354919102,1740817839744,-500.0,0.00032876,2]
[354919103,1740817839753,-500.0,0.00032876,2]
[354919104,1740817839763,-500.0,0.00032876,2]
[354919105,1740817839773,-500.0,0.00032876,2]
[354919106,1740817839782,-629.12,0.00032876,2]
[354919107,1740817839792,-476.03491322,0.00032876,2]
[354919108,1740817839801,-283.83787859,0.00032876,2]
[354919109,1740817839811,-500.0,0.00032876,2]
[354919110,1740817839820,-500.0,0.00032876,2]
[354919111,1740817839830,-500.0,0.00032876,2]
[354919112,1740817839839,-500.0,0.00032876,2]
[354919114,1740817839849,-500.0,0.00032876,2]
[354919115,1740817839858,-500.0,0.00032876,2]
[354919117,1740817839868,-614.19,0.00032876,2]
[354919118,1740817839878,-500.0,0.00032876,2]
[354919119,1740817839888,-500.0,0.00032876,2]
[354919120,1740817839898,-500.0,0.00032876,2]
[354919121,1740817839909,-711.94,0.00032876,2]
[354919122,1740817839919,-500.0,0.00032876,2]
[354919123,1740817839931,-500.0,0.00032876,2]
[354919124,1740817839942,-500.0,0.00032876,2]
[354919125,1740817839951,-500.0,0.00032876,2]
[354919126,1740817839960,-500.0,0.00032876,2]
[354919127,1740817839971,-500.0,0.00032876,2]
[354919128,1740817839981,-500.0,0.00032876,2]
[354919129,1740817839990,-500.0,0.00032876,2]
[354919130,1740817840000,-500.0,0.00032876,2]
[354919131,1740817840011,-1477.94,0.00032876,2]
[354919132,1740817840021,-500.0,0.00032876,2]
[354919133,1740817840031,-500.0,0.00032876,2]
[354919134,1740817840040,-888.11,0.00032876,2]
[354919135,1740817840050,-500.0,0.00032876,2]
[354919136,1740817840060,-500.0,0.00032876,2]
[354919137,1740817840070,-500.0,0.00032876,2]
[354919138,1740817840080,-500.0,0.00032876,2]
[354919139,1740817840089,-500.0,0.00032876,2]
[354919140,1740817840099,-500.0,0.00032876,2]
[354919141,1740817840109,-500.0,0.00032876,2]
[354919142,1740817840118,-500.0,0.00032876,2]
[354919143,1740817840128,-500.0,0.00032876,2]
[354919144,1740817840138,-500.0,0.00032876,2]
[354919145,1740817840147,-218.88,0.00032876,2]
[354919146,1740817840156,-500.0,0.00032876,2]
[354919147,1740817840166,-500.0,0.00032876,2]
[354919148,1740817840175,-500.0,0.00032876,2]
[354919149,1740817840185,-500.0,0.00032876,2]
[354919150,1740817840195,-500.0,0.00032876,2]
[354919151,1740817840204,-418.54033608,0.00032876,2]
[354919152,1740817840213,-500.0,0.00032876,2]
[354919153,1740817840222,-719.65,0.00032876,2]
[354919154,1740817840232,-500.0,0.00032876,2]
[354919155,1740817840241,-500.0,0.00032876,2]
[354919156,1740817840251,-1024.55,0.00032876,2]
[354919157,1740817840260,-490.32903665,0.00032876,2]
[354919158,1740817840269,-500.0,0.00032876,2]
[354919159,1740817840278,-500.0,0.00032876,2]
[354919160,1740817840287,-500.0,0.00032876,2]
[354919161,1740817840298,-500.0,0.00032876,2]
[354919162,1740817840307,-500.0,0.00032876,2]
[354919163,1740817840317,-500.0,0.00032876,2]
[354919164,1740817840326,-503.6,0.00032876,2]
[354919165,1740817840335,-527.87,0.00032876,2]
[354919166,1740817840345,-500.28872659,0.00032876,2]
[354919167,1740817840354,-500.0,0.00032876,2]
[354919168,1740817840363,-500.0,0.00032876,2]
[354919169,1740817840372,-555.66,0.00032876,2]
[354919170,1740817840383,-500.0,0.00032876,2]
[354919171,1740817840392,-500.0,0.00032876,2]
[354919172,1740817840401,-573.23,0.00032876,2]
[354919173,1740817840411,-500.0,0.00032876,2]
[354919174,1740817840419,-767.47,0.00032876,2]
[354919175,1740817840429,-500.0,0.00032876,2]
[354919176,1740817840438,-572.68520995,0.00032876,2]
[354919177,1740817840447,-500.0,0.00032876,2]
[354919178,1740817840456,-500.0,0.00032876,2]
[354919179,1740817840466,-500.0,0.00032876,2]
[354919180,1740817840475,-200.0,0.00032876,2]
[354919181,1740817840484,-500.0,0.00032876,2]
[354919182,1740817840493,-500.0,0.00032876,2]
[354919183,1740817840503,-514.28,0.00032876,2]
[354919184,1740817840513,-610.5,0.00032876,2]
[354919185,1740817840522,-500.0,0.00032876,2]
[354919186,1740817840532,-545.17307275,0.00032876,2]
[354919187,1740817840541,-500.0,0.00032876,2]
[354919188,1740817840551,-500.0,0.00032876,2]
[354919189,1740817840561,-500.0,0.00032876,2]
[354919190,1740817840570,-519.24,0.00032876,2]
[354919191,1740817840580,-500.0,0.00032876,2]
[354919192,1740817840590,-500.0,0.00032876,2]
[354919193,1740817840599,-500.0,0.00032876,2]
[354919194,1740817840609,-500.0,0.00032876,2]
[354919195,1740817840618,-883.93,0.00032876,2]
[354919196,1740817840628,-718.37,0.00032876,2]
[354919197,1740817840638,-402.94456754,0.00032876,2]
[354919198,1740817840648,-523.77745751,0.00032876,2]
[354919199,1740817840658,-759.65,0.00032876,2]
[354919200,1740817840668,-500.0,0.00032876,2]
[354919201,1740817840677,-500.0,0.00032876,2]
[354919202,1740817840687,-500.0,0.00032876,2]
[354919203,1740817840696,-500.0,0.00032876,2]
[354919204,1740817840706,-500.0,0.00032876,2]
[354919205,1740817840716,-500.0,0.00032876,2]
[354919206,1740817840726,-503.73344001,0.00032876,2]
[354919207,1740817840735,-829.62,0.00032876,2]
[354919208,1740817840745,-500.0,0.00032876,2]
[354919209,1740817840754,-500.0,0.00032876,2]
[354919210,1740817840763,-500.0,0.00032876,2]
[354919211,1740817840772,-500.0,0.00032876,2]
[354919212,1740817840783,-500.0,0.00032876,2]
[354919213,1740817840792,-500.0,0.00032876,2]
[354919214,1740817840801,-213.17570099,0.00032876,120]
[354919215,1740817840810,-730.09,0.00032876,2]
[354919216,1740817840819,-500.0,0.00032876,2]
[354919217,1740817840882,-500.0,0.00032876,2]
[354919218,1740817840893,-632.37,0.00032876,2]
[354919219,1740817840902,-1347.85,0.00032876,2]
[354919220,1740817840911,-500.0,0.00032876,2]
[354919221,1740817840920,-646.1594426,0.00032876,2]
[354919222,1740817840932,-500.0,0.00032876,2]
[354919223,1740817840941,-500.0,0.00032876,2]
[354919224,1740817840951,-500.0,0.00032876,2]
[354919225,1740817840960,-501.96018849,0.00032876,2]
[354919226,1740817840970,-500.0,0.00032876,2]
[354919227,1740817840980,-500.0,0.00032876,2]
[354919228,1740817840989,-500.0,0.00032876,2]
[354919229,1740817840998,-801.46,0.00032876,2]
[354919230,1740817841010,-764.75,0.00032876,2]
[354919231,1740817841020,-501.83871337,0.00032876,2]
[354919232,1740817841029,-500.0,0.00032876,2]
[354919233,1740817841039,-500.0,0.00032876,2]
[354919234,1740817841049,-500.0,0.00032876,2]
[354919235,1740817841058,-500.0,0.00032876,2]
[354919236,1740817841068,-500.0,0.00032876,2]
[354919237,1740817841077,-500.0,0.00032876,2]
[354919238,1740817841086,-500.0,0.00032876,2]
[354919239,1740817841096,-500.0,0.00032876,2]
[354919240,1740817841106,-500.0,0.00032876,2]
[354919241,1740817841115,-500.0,0.00032876,2]
[354919242,1740817841125,-500.0,0.00032876,2]
[354919243,1740817841134,-501.94827836,0.00032876,2]
[354919244,1740817841143,-510.84797747,0.00032876,2]
[354919245,1740817841153,-500.0,0.00032876,2]
[354919246,1740817841163,-605.9,0.00032876,2]
[354919247,1740817841173,-500.0,0.00032876,2]
[354919248,1740817841183,-500.0,0.00032876,2]
[354919249,1740817841193,-507.58,0.00032876,2]
[354919250,1740817841202,-614.76,0.00032876,2]
[354919251,1740817841212,-1900.98,0.00032876,2]
[354919252,1740817841222,-500.0,0.00032876,2]
[354919253,1740817841231,-500.0,0.00032876,2]
[354919254,1740817841241,-500.0,0.00032876,2]
[354919255,1740817841251,-500.0,0.00032876,2]
[354919256,1740817841260,-500.0,0.00032876,2]
[354919257,1740817841270,-500.0,0.00032876,2]
[354919258,1740817841279,-500.0,0.00032876,2]
[354919259,1740817841288,-500.0,0.00032876,2]
[354919260,1740817841298,-500.0,0.00032876,2]
[354919261,1740817841308,-1227.37,0.00032876,2]
[354919262,1740817841317,-500.0,0.00032876,2]
[354919263,1740817841327,-500.0,0.00032876,2]
[354919264,1740817841337,-500.0,0.00032876,2]
[354919265,1740817841346,-500.0,0.00032876,2]
[354919266,1740817841355,-500.0,0.00032876,2]
[354919267,1740817841365,-509.14059452,0.00032876,2]
[354919268,1740817841375,-2343.98,0.00032876,2]
[354919269,1740817841384,-500.0,0.00032876,2]
[354919270,1740817841393,-500.0,0.00032876,2]
[354919271,1740817841403,-500.0,0.00032876,2]
[354919272,1740817841413,-500.0,0.00032876,2]
[354919273,1740817841422,-1080.1,0.00032876,2]
[354919274,1740817841431,-887.27,0.00032876,2]
[354919275,1740817841441,-5673.64,0.00032876,2]
[354919276,1740817841450,-500.0,0.00032876,2]
[354919277,1740817841459,-500.0,0.00032876,2]
[354919278,1740817841468,-919.62,0.00032876,2]
[354919279,1740817841478,-569.41,0.00032876,2]
[354919280,1740817841488,-1452.05,0.00032876,2]
[354919281,1740817841497,-500.0,0.00032876,2]
[354919282,1740817841506,-500.0,0.00032876,2]
[354919283,1740817841516,-500.0,0.00032876,2]
[354919284,1740817841525,-500.0,0.00032876,2]
[354919285,1740817841534,-500.0,0.00032876,2]
[354919286,1740817841544,-500.0,0.00032876,2]
[354919287,1740817841553,-1359.61,0.00032876,2]
[354919288,1740817841563,-500.0,0.00032876,2]
[354919289,1740817841572,-500.0,0.00032876,2]
[354919290,1740817841583,-541.18,0.00032876,2]
[354919291,1740817841592,-535.66,0.00032876,2]
[354919292,1740817841601,-500.0,0.00032876,2]
[354919293,1740817841611,-500.0,0.00032876,2]
[354919294,1740817841622,-738.94,0.00032876,2]
[354919295,1740817841631,-500.0,0.00032876,2]
[354919296,1740817841640,-1818.73,0.00032876,2]
[354919297,1740817841649,-500.0,0.00032876,2]
[354919298,1740817841662,-500.0,0.00032876,2]
[354919299,1740817841672,-500.0,0.00032876,2]
[354919300,1740817841681,-887.06,0.00032876,2]
[354919301,1740817841690,-500.0,0.00032876,2]
[354919302,1740817841700,-500.0,0.00032876,2]
[354919303,1740817841709,-500.0,0.00032876,2]
[354919304,1740817841718,-500.0,0.00032876,2]
[354919305,1740817841728,-500.0,0.00032876,2]
[354919306,1740817841737,-500.0,0.00032876,2]
[354919307,1740817841746,-511.54275996,0.00032876,2]
[354919308,1740817841755,-500.0,0.00032876,2]
[354919309,1740817841765,-500.0,0.00032876,2]
[354919310,1740817841775,-500.0,0.00032876,2]
[354919311,1740817841784,-500.0,0.00032876,2]
[354919312,1740817841793,-500.0,0.00032876,2]
[354919313,1740817841802,-500.0,0.00032876,2]
[354919314,1740817841811,-500.0,0.00032876,2]
[354919315,1740817841821,-500.0,0.00032876,2]
[354919316,1740817841830,-500.0,0.00032876,2]
[354919317,1740817841839,-500.0,0.00032876,2]
[354919318,1740817841849,-500.0,0.00032876,2]
[354919319,1740817841858,-500.0,0.00032876,2]
[354919320,1740817841867,-1355.15,0.00032876,2]
[354919321,1740817841876,-500.0,0.00032876,2]
[354919322,1740817841886,-946.24,0.00032876,2]
[354919323,1740817841895,-500.0,0.00032876,2]
[354919324,1740817841904,-828.84,0.00032876,2]
[354919325,1740817841913,-500.0,0.00032876,2]
[354919326,1740817841921,-500.0,0.00032876,2]
[354919327,1740817841931,-500.0,0.00032876,2]
[354919328,1740817841945,-500.0,0.00032876,2]
[354919329,1740817841955,-500.0,0.00032876,2]
[354919330,1740817841965,-1363.84,0.00032876,2]
[354919331,1740817841974,-500.0,0.00032876,2]
[354919332,1740817841985,-607.06,0.00032876,2]
[354919333,1740817841994,-500.0,0.00032876,2]
[354919334,1740817842004,-665.85,0.00032876,2]
[354919335,1740817842014,-500.0,0.00032876,2]
[354919336,1740817842023,-500.0,0.00032876,2]
[354919337,1740817842033,-500.0,0.00032876,2]
[354919338,1740817842043,-500.0,0.00032876,2]
[354919339,1740817842052,-500.0,0.00032876,2]
[354919340,1740817842061,-500.0,0.00032876,2]
[354919341,1740817842071,-500.0,0.00032876,2]
[354919342,1740817842080,-500.0,0.00032876,2]
[354919343,1740817842089,-500.0,0.00032876,2]
[354919344,1740817842099,-558.06420154,0.00032876,2]
[354919345,1740817842108,-505.24489741,0.00032876,2]
[354919346,1740817842118,-500.0,0.00032876,2]
[354919347,1740817842127,-500.0,0.00032876,2]
[354919348,1740817842137,-500.0,0.00032876,2]
[354919349,1740817842146,-652.83,0.00032876,2]
[354919350,1740817842156,-500.0,0.00032876,2]
[354919351,1740817842166,-500.0,0.00032876,2]
[354919352,1740817842176,-500.0,0.00032876,2]
[354919353,1740817842185,-500.0,0.00032876,2]
[354919354,1740817842195,-500.0,0.00032876,2]
[354919355,1740817842204,-500.0,0.00032876,2]
[354919356,1740817842214,-500.0,0.00032876,2]
[354919357,1740817842224,-500.0,0.00032876,2]
[354919359,1740817842233,-563.41,0.00032876,2]
[354919361,1740817842243,-500.0,0.00032876,2]
[354919363,1740817842252,-500.0,0.00032876,2]
[354919365,1740817842262,-500.0,0.00032876,2]
[354919367,1740817842271,-500.0,0.00032876,2]
[354919369,1740817842280,-500.0,0.00032876,2]
[354919372,1740817842290,-525.54,0.00032876,2]
[354919375,1740817842299,-500.0,0.00032876,2]
[354919378,1740817842308,-1357.83,0.00032876,2]
[354919381,1740817842318,-1766.46,0.00032876,2]
[354919383,1740817842327,-500.0,0.00032876,2]
[354919386,1740817842337,-500.0,0.00032876,2]
[354919390,1740817842345,-500.0,0.00032876,2]
[354919392,1740817842354,-500.0,0.00032876,2]
[354919396,1740817842364,-500.0,0.00032876,2]
[354919399,1740817842374,-506.5410076,0.00032876,2]
[354919403,1740817842383,-500.0,0.00032876,2]
[354919406,1740817842393,-500.0,0.00032876,2]
[354919409,1740817842403,-500.0,0.00032876,2]
[354919412,1740817842413,-500.0,0.00032876,2]
[354919414,1740817842423,-500.0,0.00032876,2]
[354919416,1740817842433,-500.0,0.00032876,2]
[354919418,1740817842442,-500.0,0.00032876,2]
[354919421,1740817842452,-500.0,0.00032876,2]
[354919423,1740817842461,-500.0,0.00032876,2]
[354919425,1740817842471,-500.0,0.00032876,2]
[354919428,1740817842480,-500.0,0.00032876,2]
[354919430,1740817842490,-500.0,0.00032876,2]
[354919433,1740817842499,-500.0,0.00032876,2]
[354919435,1740817842509,-500.0,0.00032876,2]
[354919437,1740817842518,-329.78,0.00032876,2]
[354919439,1740817842528,-500.0,0.00032876,2]
[354919441,1740817842537,-1055.04,0.00032876,2]